{"text_format":"3","workbook":"xlsx","n_sheets":5,"sheets":["Über","Meilensteine","Aufgaben","Gantt-Diagramm","Dynam. Diagrammdaten (ausgebl.)"],"not_rendered":{"charts":1,"defined_names":4},"read":"whole","date_system":"1900"}

{"sheet":"Über","index":0,"n_rows":11,"n_cols":1,"rows_kept":11}
["Informationen zu dieser Arbeitsmappe"]
["Geben Sie Meilenstein- und Vorgangsinformationen auf dem Arbeitsblatt \"Meilensteine und Vorgänge\" ein.  Um Meilensteine auf der Zeitachse darzustellen, geben Sie \"0\" in der Spalte \"Nr.\" ein, und aktualisieren Sie dann die Bezeichnungsposition auf \"unterhalb\", um das Überschneiden von Bezeichnungen zu vermeiden.\n\nAnhand der Positionsspalte in der Meilensteintabelle werden Meilensteine im Vorgangsdiagramm entweder in der gleichen Zeile oder in gestapelten Zeilen dargestellt. Um sie in der gleichen Zeile darzustellen, geben Sie in dieser Spalte für jeden Meilenstein die gleiche Zahl ein. Um sie in verschiedenen Zeilen darzustellen, geben Sie verschiedene Zahlen ein. In den Beispieldaten werden alle Meilensteine entlang der Zeilenposition 2 dargestellt.\n"]
["Leitfaden für die Sprachausgabe"]
["\nDiese Arbeitsmappe enthält 5 Arbeitsblätter:\nÜber\nMeilensteine\nAufgaben\nGantt-Diagramm\nDynamische Diagrammdaten (ausgeblendet)\n\nDie Anweisungen für jedes Arbeitsblatt befinden sich in Spalte A ab Zelle A1 der einzelnen Arbeitsblätter. Sie sind in verborgenem Text geschrieben. Jeder Schritt führt Sie durch die Informationen in der betreffenden Zeile. Jeder nachfolgende Schritt fährt in den Zellen A2, A3 usw. fort, sofern nicht ausdrücklich anders angegeben. Beispielsweise kann der Anweisungstext etwa für den nächsten Schritt \"Mit Zelle 6 fortfahren\" besagen. \n\nVerborgener Text wird nicht gedruckt.\nUm diese Anweisungen von einem der Arbeitsblätter zu entfernen, löschen Sie einfach Spalte A.\n"]
["Dynamische Diagrammdaten (ausgeblendet)"]
["\nLöschen oder ändern Sie keine Inhalte auf dem ausgeblendeten Arbeitsblatt. Andernfalls würde die Integrität der Gantt-Diagrammerstellung möglicherweise beschädigt.\n\nDie Daten sehen möglicherweise leer aus, die Datumswerte erscheinen eventuell falsch. Ändern Sie die Daten nicht durch Ausfüllen, Bearbeiten, Löschen oder in anderer Weise, da Sie damit Gefahr laufen, Formeln zu überschreiben und die Funktionen zur Diagrammerstellung zu beeinträchtigen.\n\nDie dynamische Meilensteintabelle erlaubt die Darstellung von 15 Meilensteinen im Diagramm. Um mehr als 15 anzuzeigen, erweitern Sie einfach die Tabelle, um die gewünschte Zahl zu berücksichtigen. Achten Sie darauf, die eigentlichen Meilensteindaten nur auf dem Arbeitsblatt \"Diagrammdaten\" hinzuzufügen.\n"]
["Tipps"]
["\nStandardmäßig werden Meilensteine mithilfe der Spalte \"Position\" auf dem Arbeitsblatt \"Diagrammdaten\" ab Zelle C5 in Zeile 1 des Gantt-Diagramms dargestellt. Um Meilensteine in anderen Zeilen darzustellen, ändern Sie einfach die Zahl. \n"]
["Die Standardeinstellung sieht die Hervorhebung des heutigen Tags im Gantt-Diagramm vor. Um das aktuelle Datum nicht mehr hervorzuheben, wählen Sie auf dem Arbeitsblatt \"Diagrammdaten\" in Zelle D2 einfach \"Nein\" aus.\n"]
["Die Zeitachse des Gantt-Diagramms stellt Datumswerte jeweils mit einer Lücke von 5 Datumswerten dar. Sie können dies ändern, indem Sie die Zeitachse auf dem Arbeitsblatt \"Gantt-Diagramm\" und dann \"Achse formatieren\" auswählen. Ändern Sie die Hauptstriche beispielsweise von \"5\" auf \"1\" oder \"10\". \n"]
["Dies ist die letzte Anweisung auf diesem Arbeitsblatt."]

{"sheet":"Meilensteine","index":1,"n_rows":26,"n_cols":5,"rows_kept":26}
["Erstellen Sie auf diesem Arbeitsblatt ein Gantt-Diagramm zur Datumsnachverfolgung.\nDer Titel dieses Arbeitsblatts befindet sich in Zelle B1. \nInformationen zur Verwendung dieses Arbeitsblatts, einschließlich Anweisungen für die Sprachausgabe, finden Sie auf dem Arbeitsblatt \"Info\".\nNavigieren Sie weiterhin in Spalte A abwärts, um weitere Anweisungen anzuzeigen.","Gantt-Diagramm zur Datumsnachverfolgung"]
["Wählen Sie in Zelle D2 \"Ja\" aus, wenn Sie das heutige Datum auf dem Arbeitsblatt \"Gantt-Diagramm\" hervorheben möchten. \nWählen Sie in Zelle D2 \"Nein\" aus, wenn Sie das heutige Datum auf dem Arbeitsblatt \"Gantt-Diagramm\" nicht hervorheben möchten.\nWählen Sie in Zelle D2 ALT+NACH-UNTEN-TASTE aus, um Optionen anzuzeigen.","Heutiges Datum nachverfolgen?",null,"Ja"]
["Die Meilensteine-Überschrift für die Meilensteintabelle befindet sich in Zelle B3.\nDie Vorgänge-Überschrift für die Vorgangstabelle befindet sich in Zelle G3.","Meilensteine"]
["Informationen zu den Spalten in der Meilensteintabelle befinden sich in dieser Zeile von Zelle B4 bis Zelle E4.\nInformationen zu den Spalten in der Vorgangstabelle befinden sich in dieser Zeile von Zelle G4 bis Zelle J4.","Diese Spalte sollte sequenziell sortiert sein.","In der Spalte \"Position\" sind Meilensteine innerhalb des Vorgangsdiagramms dargestellt.","Geben Sie in dieser Spalte das Datum für einen Meilenstein ein.","Geben Sie in dieser Spalte eine Beschreibung des Meilensteins ein. Diese Beschreibungen werden im Diagramm angezeigt."]
["Die Überschriften der Meilensteintabelle befinden sich in den Zellen B5 bis E5. Die Überschriften der Vorgangstabelle befinden sich in den Zellen G5 bis J5.\nDie Meilenstein-Beispieldaten befinden sich in den Zellen B6 bis E11. \nDie Vorgangsbeispieldaten befinden sich in den Zellen G6 bis J17.\nDie nächste Anweisung finden Sie in Zelle A21.","Nr.","Position","Datum","Meilenstein"]
[null,1,1,{"$f":"Anfangs_Datum+10","v":"2024-04-18"},"Meilenstein 1"]
[null,2,1,{"$f":"TODAY()+25","v":"2024-05-04"},"Meilenstein 2"]
[null,3,1,{"$f":"TODAY()+35","v":"2024-05-14"},"Meilenstein 3"]
[null,4,1,{"$f":"TODAY()+45","v":"2024-05-24"},"Meilenstein 4"]
[null,5,1,{"$f":"TODAY()+60","v":"2024-06-08"},"Meilenstein 5"]
[null,6,1,{"$f":"TODAY()+70","v":"2024-06-18"},"Meilenstein 6"]
{"$rows_empty":9}
["Um weitere Meilensteine hinzuzufügen, fügen Sie über dieser eine neue Zeile ein.\nBeachten Sie, dass die Standardanzahl der im Diagramm dazustellenden Meilensteine 15 ist. Das Hinzufügen neuer Meilensteine erfordert eine Änderung am ausgeblendeten Arbeitsblatt. Weitere Informationen finden Sie in der Info-Arbeitsblattzelle A9.\nDie nächste Anweisung finden Sie in Zelle A26.","Um weitere Meilensteine hinzuzufügen, fügen Sie über dieser eine neue Zeile ein."]
[]
[]
[]
[]
["Ein Hinweis ist in Zelle G26.\nDies ist die letzte Anweisung auf diesem Arbeitsblatt."]

{"sheet":"Aufgaben","index":2,"n_rows":26,"n_cols":6,"rows_kept":26}
["Erstellen Sie auf diesem Arbeitsblatt ein Gantt-Diagramm zur Datumsnachverfolgung.\nDer Titel dieses Arbeitsblatts befindet sich in Zelle B1. \nInformationen zur Verwendung dieses Arbeitsblatts, einschließlich Anweisungen für die Sprachausgabe, finden Sie auf dem Arbeitsblatt \"Info\".\nNavigieren Sie weiterhin in Spalte A abwärts, um weitere Anweisungen anzuzeigen.","Gantt-Diagramm zur Datumsnachverfolgung"]
[]
["Die Meilensteine-Überschrift für die Meilensteintabelle befindet sich in Zelle B3.\nDie Vorgänge-Überschrift für die Vorgangstabelle befindet sich in Zelle G3.","Aufgaben"]
[null,"Diese Spalte sollte sequenziell sortiert sein.","Geben Sie unten ein Anfangsdatum für jeden Vorgang ein. Optimale Ergebnisse erzielen Sie, wenn Sie diese Spalte in aufsteigender Reihenfolge sortieren.","Geben Sie das Enddatum für jeden Vorgang oder jede Aktivität unten in dieser Spalte ein.","Geben Sie Vorgänge und/oder Aktivitäten in dieser Spalte ein.","Automatisch berechnete Spalte für die Darstellung der Dauer der einzelnen Vorgänge im Diagramm. Nicht löschen oder ändern."]
[null,"Nr.","Anfangsdatum","Enddatum","Vorgang","Dauer in Tagen"]
[null,1,{"$f":"TODAY()-1","v":"2024-04-08"},{"$f":"Aufgaben[[#This Row],[Anfangsdatum]]+1","v":"2024-04-09"},"Aktivität 1",{"$f":"IFERROR(IF(LEN(Aufgaben[[#This Row],[Anfangsdatum]])=0,\"\",(INT(Aufgaben[[#This Row],[Enddatum]])-INT(Aufgaben[[#This Row],[Anfangsdatum]]))-(INT(Aufgaben[[#This Row],[Anfangsdatum]])-INT(Aufgaben[[#This Row],[Anfangsdatum]]))+1),\"\")","v":2}]
[null,2,{"$f":"TODAY()","v":"2024-04-09"},{"$f":"Aufgaben[[#This Row],[Anfangsdatum]]+1","v":"2024-04-10"},"Aktivität 2",{"$f":"IFERROR(IF(LEN(Aufgaben[[#This Row],[Anfangsdatum]])=0,\"\",(INT(Aufgaben[[#This Row],[Enddatum]])-INT(Aufgaben[[#This Row],[Anfangsdatum]]))-(INT(Aufgaben[[#This Row],[Anfangsdatum]])-INT(Aufgaben[[#This Row],[Anfangsdatum]]))+1),\"\")","v":2}]
[null,3,{"$f":"TODAY()","v":"2024-04-09"},{"$f":"Aufgaben[[#This Row],[Anfangsdatum]]+5","v":"2024-04-14"},"Aktivität 3",{"$f":"IFERROR(IF(LEN(Aufgaben[[#This Row],[Anfangsdatum]])=0,\"\",(INT(Aufgaben[[#This Row],[Enddatum]])-INT(Aufgaben[[#This Row],[Anfangsdatum]]))-(INT(Aufgaben[[#This Row],[Anfangsdatum]])-INT(Aufgaben[[#This Row],[Anfangsdatum]]))+1),\"\")","v":6}]
[null,4,{"$f":"TODAY()+1","v":"2024-04-10"},{"$f":"Aufgaben[[#This Row],[Anfangsdatum]]+7","v":"2024-04-17"},"Aktivität 4",{"$f":"IFERROR(IF(LEN(Aufgaben[[#This Row],[Anfangsdatum]])=0,\"\",(INT(Aufgaben[[#This Row],[Enddatum]])-INT(Aufgaben[[#This Row],[Anfangsdatum]]))-(INT(Aufgaben[[#This Row],[Anfangsdatum]])-INT(Aufgaben[[#This Row],[Anfangsdatum]]))+1),\"\")","v":8}]
[null,5,{"$f":"TODAY()+8","v":"2024-04-17"},{"$f":"Aufgaben[[#This Row],[Anfangsdatum]]+10","v":"2024-04-27"},"Aktivität 5",{"$f":"IFERROR(IF(LEN(Aufgaben[[#This Row],[Anfangsdatum]])=0,\"\",(INT(Aufgaben[[#This Row],[Enddatum]])-INT(Aufgaben[[#This Row],[Anfangsdatum]]))-(INT(Aufgaben[[#This Row],[Anfangsdatum]])-INT(Aufgaben[[#This Row],[Anfangsdatum]]))+1),\"\")","v":11}]
[null,6,{"$f":"TODAY()+12","v":"2024-04-21"},{"$f":"Aufgaben[[#This Row],[Anfangsdatum]]+30","v":"2024-05-21"},"Aktivität 6",{"$f":"IFERROR(IF(LEN(Aufgaben[[#This Row],[Anfangsdatum]])=0,\"\",(INT(Aufgaben[[#This Row],[Enddatum]])-INT(Aufgaben[[#This Row],[Anfangsdatum]]))-(INT(Aufgaben[[#This Row],[Anfangsdatum]])-INT(Aufgaben[[#This Row],[Anfangsdatum]]))+1),\"\")","v":31}]
[null,7,{"$f":"TODAY()+15","v":"2024-04-24"},{"$f":"Aufgaben[[#This Row],[Anfangsdatum]]+15","v":"2024-05-09"},"Aktivität 7",{"$f":"IFERROR(IF(LEN(Aufgaben[[#This Row],[Anfangsdatum]])=0,\"\",(INT(Aufgaben[[#This Row],[Enddatum]])-INT(Aufgaben[[#This Row],[Anfangsdatum]]))-(INT(Aufgaben[[#This Row],[Anfangsdatum]])-INT(Aufgaben[[#This Row],[Anfangsdatum]]))+1),\"\")","v":16}]
[null,8,{"$f":"TODAY()+25","v":"2024-05-04"},{"$f":"Aufgaben[[#This Row],[Anfangsdatum]]+5","v":"2024-05-09"},"Aktivität 8",{"$f":"IFERROR(IF(LEN(Aufgaben[[#This Row],[Anfangsdatum]])=0,\"\",(INT(Aufgaben[[#This Row],[Enddatum]])-INT(Aufgaben[[#This Row],[Anfangsdatum]]))-(INT(Aufgaben[[#This Row],[Anfangsdatum]])-INT(Aufgaben[[#This Row],[Anfangsdatum]]))+1),\"\")","v":6}]
[null,9,{"$f":"TODAY()+34","v":"2024-05-13"},{"$f":"Aufgaben[[#This Row],[Anfangsdatum]]+2","v":"2024-05-15"},"Aktivität 9",{"$f":"IFERROR(IF(LEN(Aufgaben[[#This Row],[Anfangsdatum]])=0,\"\",(INT(Aufgaben[[#This Row],[Enddatum]])-INT(Aufgaben[[#This Row],[Anfangsdatum]]))-(INT(Aufgaben[[#This Row],[Anfangsdatum]])-INT(Aufgaben[[#This Row],[Anfangsdatum]]))+1),\"\")","v":3}]
[null,10,{"$f":"TODAY()+40","v":"2024-05-19"},{"$f":"Aufgaben[[#This Row],[Anfangsdatum]]+30","v":"2024-06-18"},"Aktivität 10",{"$f":"IFERROR(IF(LEN(Aufgaben[[#This Row],[Anfangsdatum]])=0,\"\",(INT(Aufgaben[[#This Row],[Enddatum]])-INT(Aufgaben[[#This Row],[Anfangsdatum]]))-(INT(Aufgaben[[#This Row],[Anfangsdatum]])-INT(Aufgaben[[#This Row],[Anfangsdatum]]))+1),\"\")","v":31}]
[null,11,{"$f":"TODAY()+42","v":"2024-05-21"},{"$f":"Aufgaben[[#This Row],[Anfangsdatum]]+23","v":"2024-06-13"},"Aktivität 11",{"$f":"IFERROR(IF(LEN(Aufgaben[[#This Row],[Anfangsdatum]])=0,\"\",(INT(Aufgaben[[#This Row],[Enddatum]])-INT(Aufgaben[[#This Row],[Anfangsdatum]]))-(INT(Aufgaben[[#This Row],[Anfangsdatum]])-INT(Aufgaben[[#This Row],[Anfangsdatum]]))+1),\"\")","v":24}]
[null,12,{"$f":"TODAY()+50","v":"2024-05-29"},{"$f":"Aufgaben[[#This Row],[Anfangsdatum]]+5","v":"2024-06-03"},"Aktivität 12",{"$f":"IFERROR(IF(LEN(Aufgaben[[#This Row],[Anfangsdatum]])=0,\"\",(INT(Aufgaben[[#This Row],[Enddatum]])-INT(Aufgaben[[#This Row],[Anfangsdatum]]))-(INT(Aufgaben[[#This Row],[Anfangsdatum]])-INT(Aufgaben[[#This Row],[Anfangsdatum]]))+1),\"\")","v":6}]
[{"$nulls":5},{"$f":"IFERROR(IF(LEN(Aufgaben[[#This Row],[Anfangsdatum]])=0,\"\",(INT(Aufgaben[[#This Row],[Enddatum]])-INT(Aufgaben[[#This Row],[Anfangsdatum]]))-(INT(Aufgaben[[#This Row],[Anfangsdatum]])-INT(Aufgaben[[#This Row],[Anfangsdatum]]))+1),\"\")","v":""}]
[{"$nulls":5},{"$f":"IFERROR(IF(LEN(Aufgaben[[#This Row],[Anfangsdatum]])=0,\"\",(INT(Aufgaben[[#This Row],[Enddatum]])-INT(Aufgaben[[#This Row],[Anfangsdatum]]))-(INT(Aufgaben[[#This Row],[Anfangsdatum]])-INT(Aufgaben[[#This Row],[Anfangsdatum]]))+1),\"\")","v":""}]
[{"$nulls":5},{"$f":"IFERROR(IF(LEN(Aufgaben[[#This Row],[Anfangsdatum]])=0,\"\",(INT(Aufgaben[[#This Row],[Enddatum]])-INT(Aufgaben[[#This Row],[Anfangsdatum]]))-(INT(Aufgaben[[#This Row],[Anfangsdatum]])-INT(Aufgaben[[#This Row],[Anfangsdatum]]))+1),\"\")","v":""}]
[{"$nulls":5},{"$f":"IFERROR(IF(LEN(Aufgaben[[#This Row],[Anfangsdatum]])=0,\"\",(INT(Aufgaben[[#This Row],[Enddatum]])-INT(Aufgaben[[#This Row],[Anfangsdatum]]))-(INT(Aufgaben[[#This Row],[Anfangsdatum]])-INT(Aufgaben[[#This Row],[Anfangsdatum]]))+1),\"\")","v":""}]
[{"$nulls":5},{"$f":"IFERROR(IF(LEN(Aufgaben[[#This Row],[Anfangsdatum]])=0,\"\",(INT(Aufgaben[[#This Row],[Enddatum]])-INT(Aufgaben[[#This Row],[Anfangsdatum]]))-(INT(Aufgaben[[#This Row],[Anfangsdatum]])-INT(Aufgaben[[#This Row],[Anfangsdatum]]))+1),\"\")","v":""}]
[{"$nulls":5},{"$f":"IFERROR(IF(LEN(Aufgaben[[#This Row],[Anfangsdatum]])=0,\"\",(INT(Aufgaben[[#This Row],[Enddatum]])-INT(Aufgaben[[#This Row],[Anfangsdatum]]))-(INT(Aufgaben[[#This Row],[Anfangsdatum]])-INT(Aufgaben[[#This Row],[Anfangsdatum]]))+1),\"\")","v":""}]
[{"$nulls":5},{"$f":"IFERROR(IF(LEN(Aufgaben[[#This Row],[Anfangsdatum]])=0,\"\",(INT(Aufgaben[[#This Row],[Enddatum]])-INT(Aufgaben[[#This Row],[Anfangsdatum]]))-(INT(Aufgaben[[#This Row],[Anfangsdatum]])-INT(Aufgaben[[#This Row],[Anfangsdatum]]))+1),\"\")","v":""}]
[{"$nulls":5},{"$f":"IFERROR(IF(LEN(Aufgaben[[#This Row],[Anfangsdatum]])=0,\"\",(INT(Aufgaben[[#This Row],[Enddatum]])-INT(Aufgaben[[#This Row],[Anfangsdatum]]))-(INT(Aufgaben[[#This Row],[Anfangsdatum]])-INT(Aufgaben[[#This Row],[Anfangsdatum]]))+1),\"\")","v":""}]
[null,"Um weitere Vorgänge hinzuzufügen, fügen Sie über dieser eine neue Zeile ein."]

{"sheet":"Gantt-Diagramm","index":3,"n_rows":1,"n_cols":1,"rows_kept":1}
["Auf diesem Arbeitsblatt befindet sich ein Gantt-Diagramm, das heute, die Meilensteine und die Vorgänge in einem Datumsbereich anzeigt. \nEine Scrollleiste befindet sich in Zeile 1 von Zelle B1 bis R1 und erlaubt die Erweiterung des Datumsbereichs zur Anzeige zukünftiger Meilensteine.\nDas Diagramm wird in den Zellen B2 bis R3 gezeichnet.\nDies ist die letzte Anweisung auf diesem Arbeitsblatt."]

{"sheet":"Dynam. Diagrammdaten (ausgebl.)","index":4,"n_rows":32,"n_cols":10,"rows_kept":32,"hidden":true}
["Der Titel dieses Arbeitsblatts befindet sich in Zelle B1.","Dynamische Diagrammdaten. Dieses Arbeitsblatt NICHT bearbeiten oder löschen!"]
["Der Tabellentitel befindet sich in den Zellen B2 und C2.",{"$f":"IF(TODAY()>=MIN(DynamischeAufgabenDaten[Anfangsdatum]),\"Heute\",\"\")","v":"Heute"},"Hervorheben"]
["Die Tabellenüberschrift befindet sich in den Zellen B3 und C3. Diese Koordinaten dienen zur Hervorhebung des Heute-Werts im Diagramm.\nDie erste Spalte markiert den Tag, die zweite Angaben zum Zeichnen der Linie zur Hervorhebung des heutigen Tags.\nDas Datum der ersten Spalte kann sich ändern, damit der Datumsbereich des Diagramms bei fortschreitendem Datum lesbar bleibt, bei einer Y-Koordinate von \"0\" wird aber keine Linie gezeichnet.\nÄndern oder Löschen Sie diese Inhalte nicht, sonst besteht die Gefahr, dass die Diagrammerstellung nicht mehr funktioniert. Um das aktuelle Datum nicht mehr hervorzuheben, wählen Sie auf dem Arbeitsblatt \"Diagrammdaten\" in Zelle D2 einfach \"Nein\" aus.\nDie nächste Anweisung finden Sie in Zelle A7.","Heute-Hervorhebung X-Koordinate","Y-Koordinate"]
[null,{"$f":"IFERROR(IF(TODAY()<MIN(DynamischeAufgabenDaten[Anfangsdatum]),MIN($B$11,MIN(DynamischeAufgabenDaten[Anfangsdatum])),TODAY()),TODAY())","v":"2024-04-09"},{"$f":"IFERROR(IF(Nachverfolgen_Heute=\"Ja\",IF(TODAY()<MIN(DynamischeAufgabenDaten[Anfangsdatum]),0,9),0),0)","v":9}]
[null,{"$f":"IFERROR(IF(TODAY()<MIN(DynamischeAufgabenDaten[Anfangsdatum]),MIN($B$11,MIN(DynamischeAufgabenDaten[Anfangsdatum])),TODAY()),TODAY())","v":"2024-04-09"},{"$f":"IFERROR(IF(Nachverfolgen_Heute=\"Ja\",IF(TODAY()<MIN(DynamischeAufgabenDaten[Anfangsdatum]),0,9),0),0)","v":9}]
[]
["Die Tabellenüberschrift befindet sich in Zelle B7.\nDie Scrollschrittweite in Zelle B8 stellt jederzeit die dargestellten und visuell im Gantt-Diagramm angezeigten Daten dar. \nDiese Zahl wird durch Scrollen in der Scrollleiste oben in Zeile 1 des Arbeitsblatts \"Gantt-Diagramm\" erhöht.\nDie Diagrammerstellung funktioniert am besten bei Einzelschritten.\nDie nächste Anweisung finden Sie in Zelle A10.","Scrollschrittweite"]
[null,0]
[]
["Die Tabellenüberschrift befindet sich in Zelle B10 und D10.\nDer Diagrammbereich hilft bei der Auswahl des geeigneten Bereichs für Vorgänge und Meilensteine. Ändern Sie diese Felder nicht.\nDie Veraltungszahl, die die Lesbarkeit des Diagramms durch Entfernen von veralteten Vorgängen aus dem Bereich verbessert und nur Vorgänge innerhalb des Bereichs anzeigt.  Ändern Sie diese Zahl nicht.\nDie nächste Anweisung finden Sie in Zelle A14.\n\n","Diagrammbereich",null,"Veraltung"]
[null,{"$f":"IFERROR(IF(ScrollSchrittweite[Scrollschrittweite]=0,Anfangs_Datum,IF(Anfangs_Datum+ScrollSchrittweite[Scrollschrittweite]*15<End_Datum,Anfangs_Datum+ScrollSchrittweite[Scrollschrittweite]*15,End_Datum-1)),\"\")","v":"2024-04-08"},null,45]
[null,{"$f":"IFERROR(IF($B$11+15<End_Datum,$B$11+15,End_Datum),\"\")","v":"2024-04-23"}]
[]
["Die Tabellenüberschrift für dynamische Meilensteindaten befindet sich in den Zellen B14 bis E14. Ein Hinweis befindet sich in Zelle F14.\nAus dieser Tabelle entsteht das Gantt-Diagramm auf dem Arbeitsblatt \"Gantt-Diagramm\". Es zeichnet 7 Meilensteine in einem Durchgang.\nDie Daten in diesem Diagramm werden auf der Grundlage der Inhalte in der Tabelle oben automatisch generiert. \nBearbeiten oder löschen Sie diese Tabelle und ihre Inhalte nicht.\nDie nächste Anweisung finden Sie in Zelle A17.","Aufgaben","Anfangsdatum","Vorgangsdauer in Tagen","Position","< Aus dieser Tabelle wird das Gantt-Diagramm mit 7 Meilensteinen zugleich erstellt"]
[null,{"$f":"IFERROR(IF(LEN(OFFSET(Aufgaben!$C6,ScrollSchrittweite[Scrollschrittweite],0,1,1))=0,\"\",IF(OR(OFFSET(Aufgaben!$D6,ScrollSchrittweite[Scrollschrittweite],0,1,1)<=$B$12,OFFSET(Aufgaben!$C6,ScrollSchrittweite[Scrollschrittweite],0,1,1)>=($B$11-$D$11)),INDEX(Aufgaben[],OFFSET(Aufgaben!$B6,ScrollSchrittweite[Scrollschrittweite],0,1,1),4),\"\")),\"\")","v":"Aktivität 1"},{"$f":"IFERROR(IF(LEN(DynamischeAufgabenDaten[[#This Row],[Aufgaben]])=0,$B$11,INDEX(Aufgaben[],OFFSET(Aufgaben!$B6,ScrollSchrittweite[Scrollschrittweite],0,1,1),2)),\"\")","v":"2024-04-08"},{"$f":"IFERROR(IF(LEN(DynamischeAufgabenDaten[[#This Row],[Aufgaben]])=0,0,IF(AND(Aufgaben!$C6<=$B$12,Aufgaben!$D6>=$B$12),ABS(OFFSET(Aufgaben!$C6,ScrollSchrittweite[Scrollschrittweite],0,1,1)-$B$12)+1,OFFSET(Aufgaben!$F6,ScrollSchrittweite[Scrollschrittweite],0,1,1))),\"\")","v":2},{"$f":"IFERROR(IF(LEN(DynamischeAufgabenDaten[[#This Row],[Aufgaben]])=0,\"\",8),\"\")","v":8}]
[null,{"$f":"IFERROR(IF(LEN(OFFSET(Aufgaben!$C7,ScrollSchrittweite[Scrollschrittweite],0,1,1))=0,\"\",IF(OR(OFFSET(Aufgaben!$D7,ScrollSchrittweite[Scrollschrittweite],0,1,1)<=$B$12,OFFSET(Aufgaben!$C7,ScrollSchrittweite[Scrollschrittweite],0,1,1)>=($B$11-$D$11)),INDEX(Aufgaben[],OFFSET(Aufgaben!$B7,ScrollSchrittweite[Scrollschrittweite],0,1,1),4),\"\")),\"\")","v":"Aktivität 2"},{"$f":"IFERROR(IF(LEN(DynamischeAufgabenDaten[[#This Row],[Aufgaben]])=0,$B$11,INDEX(Aufgaben[],OFFSET(Aufgaben!$B7,ScrollSchrittweite[Scrollschrittweite],0,1,1),2)),\"\")","v":"2024-04-09"},{"$f":"IFERROR(IF(LEN(DynamischeAufgabenDaten[[#This Row],[Aufgaben]])=0,0,IF(AND(Aufgaben!$C7<=$B$12,Aufgaben!$D7>=$B$12),ABS(OFFSET(Aufgaben!$C7,ScrollSchrittweite[Scrollschrittweite],0,1,1)-$B$12)+1,OFFSET(Aufgaben!$F7,ScrollSchrittweite[Scrollschrittweite],0,1,1))),\"\")","v":2},{"$f":"IFERROR(IF(LEN(DynamischeAufgabenDaten[[#This Row],[Aufgaben]])=0,\"\",7),\"\")","v":7},null,"Meilenstein-Diagrammerstellung"]
["Die Zellen G15 bis I15 enthalten Tabellenüberschriften für dynamische Meilensteindaten. \nDie Daten in dieser Tabelle sehen möglicherweise leer aus, die Datumswerte erscheinen eventuell falsch. Ändern Sie diese Daten nicht durch Ausfüllen, Bearbeiten, Löschen oder in anderer Weise, da Sie damit Gefahr laufen, Formeln zu überschreiben und die Funktionen zur Diagrammerstellung zu beeinträchtigen.\nDie Tabelle erlaubt die Darstellung von 15 Meilensteinen im Diagramm. Um mehr als 15 anzuzeigen, erweitern Sie einfach die Tabelle, um die gewünschte Zahl zu berücksichtigen. Achten Sie darauf, die Meilensteine nur auf dem Arbeitsblatt \"Diagrammdaten\" hinzuzufügen. Fügen Sie dieser Tabelle keine Inhalte hinzu.\nEin Hinweis befindet sich in Zelle J15.\nDie nächste Anweisung finden Sie in Zelle A32.",{"$f":"IFERROR(IF(LEN(OFFSET(Aufgaben!$C8,ScrollSchrittweite[Scrollschrittweite],0,1,1))=0,\"\",IF(OR(OFFSET(Aufgaben!$D8,ScrollSchrittweite[Scrollschrittweite],0,1,1)<=$B$12,OFFSET(Aufgaben!$C8,ScrollSchrittweite[Scrollschrittweite],0,1,1)>=($B$11-$D$11)),INDEX(Aufgaben[],OFFSET(Aufgaben!$B8,ScrollSchrittweite[Scrollschrittweite],0,1,1),4),\"\")),\"\")","v":"Aktivität 3"},{"$f":"IFERROR(IF(LEN(DynamischeAufgabenDaten[[#This Row],[Aufgaben]])=0,$B$11,INDEX(Aufgaben[],OFFSET(Aufgaben!$B8,ScrollSchrittweite[Scrollschrittweite],0,1,1),2)),\"\")","v":"2024-04-09"},{"$f":"IFERROR(IF(LEN(DynamischeAufgabenDaten[[#This Row],[Aufgaben]])=0,0,IF(AND(Aufgaben!$C8<=$B$12,Aufgaben!$D8>=$B$12),ABS(OFFSET(Aufgaben!$C8,ScrollSchrittweite[Scrollschrittweite],0,1,1)-$B$12)+1,OFFSET(Aufgaben!$F8,ScrollSchrittweite[Scrollschrittweite],0,1,1))),\"\")","v":6},{"$f":"IFERROR(IF(LEN(DynamischeAufgabenDaten[[#This Row],[Aufgaben]])=0,\"\",6),\"\")","v":6},null,"Meilensteine","Datum","Basisplan","< Durch diese Tabelle entstehen die Meilensteinmarkierungen im Gantt-Diagramm, wobei nur die bis zu 15 Meilensteine dargestellt werden, die im dargestellten Datumsbereich liegen"]
[null,{"$f":"IFERROR(IF(LEN(OFFSET(Aufgaben!$C9,ScrollSchrittweite[Scrollschrittweite],0,1,1))=0,\"\",IF(OR(OFFSET(Aufgaben!$D9,ScrollSchrittweite[Scrollschrittweite],0,1,1)<=$B$12,OFFSET(Aufgaben!$C9,ScrollSchrittweite[Scrollschrittweite],0,1,1)>=($B$11-$D$11)),INDEX(Aufgaben[],OFFSET(Aufgaben!$B9,ScrollSchrittweite[Scrollschrittweite],0,1,1),4),\"\")),\"\")","v":"Aktivität 4"},{"$f":"IFERROR(IF(LEN(DynamischeAufgabenDaten[[#This Row],[Aufgaben]])=0,$B$11,INDEX(Aufgaben[],OFFSET(Aufgaben!$B9,ScrollSchrittweite[Scrollschrittweite],0,1,1),2)),\"\")","v":"2024-04-10"},{"$f":"IFERROR(IF(LEN(DynamischeAufgabenDaten[[#This Row],[Aufgaben]])=0,0,IF(AND(Aufgaben!$C9<=$B$12,Aufgaben!$D9>=$B$12),ABS(OFFSET(Aufgaben!$C9,ScrollSchrittweite[Scrollschrittweite],0,1,1)-$B$12)+1,OFFSET(Aufgaben!$F9,ScrollSchrittweite[Scrollschrittweite],0,1,1))),\"\")","v":8},{"$f":"IFERROR(IF(LEN(DynamischeAufgabenDaten[[#This Row],[Aufgaben]])=0,\"\",5),\"\")","v":5},null,{"$f":"IFERROR(IF(LEN(Meilensteine!D6)=0,\"\",IF(AND(Meilensteine!D6<=$B$12,Meilensteine!D6>=$B$11-$D$11),Meilensteine!E6,\"\")),\"\")","v":"Meilenstein 1"},{"$f":"IFERROR(IF(LEN(DynamischeMeilensteinDaten[[#This Row],[Meilensteine]])=0,$B$12,Meilensteine!$D6),2)","v":"2024-04-18"},{"$f":"IFERROR(IF(LEN(DynamischeMeilensteinDaten[[#This Row],[Meilensteine]])=0,\"\",Meilensteine!$C6),\"\")","v":1}]
[null,{"$f":"IFERROR(IF(LEN(OFFSET(Aufgaben!$C10,ScrollSchrittweite[Scrollschrittweite],0,1,1))=0,\"\",IF(OR(OFFSET(Aufgaben!$D10,ScrollSchrittweite[Scrollschrittweite],0,1,1)<=$B$12,OFFSET(Aufgaben!$C10,ScrollSchrittweite[Scrollschrittweite],0,1,1)>=($B$11-$D$11)),INDEX(Aufgaben[],OFFSET(Aufgaben!$B10,ScrollSchrittweite[Scrollschrittweite],0,1,1),4),\"\")),\"\")","v":"Aktivität 5"},{"$f":"IFERROR(IF(LEN(DynamischeAufgabenDaten[[#This Row],[Aufgaben]])=0,$B$11,INDEX(Aufgaben[],OFFSET(Aufgaben!$B10,ScrollSchrittweite[Scrollschrittweite],0,1,1),2)),\"\")","v":"2024-04-17"},{"$f":"IFERROR(IF(LEN(DynamischeAufgabenDaten[[#This Row],[Aufgaben]])=0,0,IF(AND(Aufgaben!$C10<=$B$12,Aufgaben!$D10>=$B$12),ABS(OFFSET(Aufgaben!$C10,ScrollSchrittweite[Scrollschrittweite],0,1,1)-$B$12)+1,OFFSET(Aufgaben!$F10,ScrollSchrittweite[Scrollschrittweite],0,1,1))),\"\")","v":7},{"$f":"IFERROR(IF(LEN(DynamischeAufgabenDaten[[#This Row],[Aufgaben]])=0,\"\",4),\"\")","v":4},null,{"$f":"IFERROR(IF(LEN(Meilensteine!D7)=0,\"\",IF(AND(Meilensteine!D7<=$B$12,Meilensteine!D7>=$B$11-$D$11),Meilensteine!E7,\"\")),\"\")","v":""},{"$f":"IFERROR(IF(LEN(DynamischeMeilensteinDaten[[#This Row],[Meilensteine]])=0,$B$12,Meilensteine!$D7),2)","v":"2024-04-23"},{"$f":"IFERROR(IF(LEN(DynamischeMeilensteinDaten[[#This Row],[Meilensteine]])=0,\"\",Meilensteine!$C7),\"\")","v":""}]
[null,{"$f":"IFERROR(IF(LEN(OFFSET(Aufgaben!$C11,ScrollSchrittweite[Scrollschrittweite],0,1,1))=0,\"\",IF(OR(OFFSET(Aufgaben!$D11,ScrollSchrittweite[Scrollschrittweite],0,1,1)<=$B$12,OFFSET(Aufgaben!$C11,ScrollSchrittweite[Scrollschrittweite],0,1,1)>=($B$11-$D$11)),INDEX(Aufgaben[],OFFSET(Aufgaben!$B11,ScrollSchrittweite[Scrollschrittweite],0,1,1),4),\"\")),\"\")","v":"Aktivität 6"},{"$f":"IFERROR(IF(LEN(DynamischeAufgabenDaten[[#This Row],[Aufgaben]])=0,$B$11,INDEX(Aufgaben[],OFFSET(Aufgaben!$B11,ScrollSchrittweite[Scrollschrittweite],0,1,1),2)),\"\")","v":"2024-04-21"},{"$f":"IFERROR(IF(LEN(DynamischeAufgabenDaten[[#This Row],[Aufgaben]])=0,0,IF(AND(Aufgaben!$C11<=$B$12,Aufgaben!$D11>=$B$12),ABS(OFFSET(Aufgaben!$C11,ScrollSchrittweite[Scrollschrittweite],0,1,1)-$B$12)+1,OFFSET(Aufgaben!$F11,ScrollSchrittweite[Scrollschrittweite],0,1,1))),\"\")","v":3},{"$f":"IFERROR(IF(LEN(DynamischeAufgabenDaten[[#This Row],[Aufgaben]])=0,\"\",3),\"\")","v":3},null,{"$f":"IFERROR(IF(LEN(Meilensteine!D8)=0,\"\",IF(AND(Meilensteine!D8<=$B$12,Meilensteine!D8>=$B$11-$D$11),Meilensteine!E8,\"\")),\"\")","v":""},{"$f":"IFERROR(IF(LEN(DynamischeMeilensteinDaten[[#This Row],[Meilensteine]])=0,$B$12,Meilensteine!$D8),2)","v":"2024-04-23"},{"$f":"IFERROR(IF(LEN(DynamischeMeilensteinDaten[[#This Row],[Meilensteine]])=0,\"\",Meilensteine!$C8),\"\")","v":""}]
[null,{"$f":"IFERROR(IF(LEN(OFFSET(Aufgaben!$C12,ScrollSchrittweite[Scrollschrittweite],0,1,1))=0,\"\",IF(OR(OFFSET(Aufgaben!$D12,ScrollSchrittweite[Scrollschrittweite],0,1,1)<=$B$12,OFFSET(Aufgaben!$C12,ScrollSchrittweite[Scrollschrittweite],0,1,1)>=($B$11-$D$11)),INDEX(Aufgaben[],OFFSET(Aufgaben!$B12,ScrollSchrittweite[Scrollschrittweite],0,1,1),4),\"\")),\"\")","v":"Aktivität 7"},{"$f":"IFERROR(IF(LEN(DynamischeAufgabenDaten[[#This Row],[Aufgaben]])=0,$B$11,INDEX(Aufgaben[],OFFSET(Aufgaben!$B12,ScrollSchrittweite[Scrollschrittweite],0,1,1),2)),\"\")","v":"2024-04-24"},{"$f":"IFERROR(IF(LEN(DynamischeAufgabenDaten[[#This Row],[Aufgaben]])=0,0,IF(AND(Aufgaben!$C12<=$B$12,Aufgaben!$D12>=$B$12),ABS(OFFSET(Aufgaben!$C12,ScrollSchrittweite[Scrollschrittweite],0,1,1)-$B$12)+1,OFFSET(Aufgaben!$F12,ScrollSchrittweite[Scrollschrittweite],0,1,1))),\"\")","v":16},{"$f":"IFERROR(IF(LEN(DynamischeAufgabenDaten[[#This Row],[Aufgaben]])=0,\"\",2),\"\")","v":2},null,{"$f":"IFERROR(IF(LEN(Meilensteine!D9)=0,\"\",IF(AND(Meilensteine!D9<=$B$12,Meilensteine!D9>=$B$11-$D$11),Meilensteine!E9,\"\")),\"\")","v":""},{"$f":"IFERROR(IF(LEN(DynamischeMeilensteinDaten[[#This Row],[Meilensteine]])=0,$B$12,Meilensteine!$D9),2)","v":"2024-04-23"},{"$f":"IFERROR(IF(LEN(DynamischeMeilensteinDaten[[#This Row],[Meilensteine]])=0,\"\",Meilensteine!$C9),\"\")","v":""}]
[{"$nulls":6},{"$f":"IFERROR(IF(LEN(Meilensteine!D10)=0,\"\",IF(AND(Meilensteine!D10<=$B$12,Meilensteine!D10>=$B$11-$D$11),Meilensteine!E10,\"\")),\"\")","v":""},{"$f":"IFERROR(IF(LEN(DynamischeMeilensteinDaten[[#This Row],[Meilensteine]])=0,$B$12,Meilensteine!$D10),2)","v":"2024-04-23"},{"$f":"IFERROR(IF(LEN(DynamischeMeilensteinDaten[[#This Row],[Meilensteine]])=0,\"\",Meilensteine!$C10),\"\")","v":""}]
[{"$nulls":6},{"$f":"IFERROR(IF(LEN(Meilensteine!D11)=0,\"\",IF(AND(Meilensteine!D11<=$B$12,Meilensteine!D11>=$B$11-$D$11),Meilensteine!E11,\"\")),\"\")","v":""},{"$f":"IFERROR(IF(LEN(DynamischeMeilensteinDaten[[#This Row],[Meilensteine]])=0,$B$12,Meilensteine!$D11),2)","v":"2024-04-23"},{"$f":"IFERROR(IF(LEN(DynamischeMeilensteinDaten[[#This Row],[Meilensteine]])=0,\"\",Meilensteine!$C11),\"\")","v":""}]
[{"$nulls":6},{"$f":"IFERROR(IF(LEN(Meilensteine!D12)=0,\"\",IF(AND(Meilensteine!D12<=$B$12,Meilensteine!D12>=$B$11-$D$11),Meilensteine!E12,\"\")),\"\")","v":""},{"$f":"IFERROR(IF(LEN(DynamischeMeilensteinDaten[[#This Row],[Meilensteine]])=0,$B$12,Meilensteine!$D12),2)","v":"2024-04-23"},{"$f":"IFERROR(IF(LEN(DynamischeMeilensteinDaten[[#This Row],[Meilensteine]])=0,\"\",Meilensteine!$C12),\"\")","v":""}]
[{"$nulls":6},{"$f":"IFERROR(IF(LEN(Meilensteine!D13)=0,\"\",IF(AND(Meilensteine!D13<=$B$12,Meilensteine!D13>=$B$11-$D$11),Meilensteine!E13,\"\")),\"\")","v":""},{"$f":"IFERROR(IF(LEN(DynamischeMeilensteinDaten[[#This Row],[Meilensteine]])=0,$B$12,Meilensteine!$D13),2)","v":"2024-04-23"},{"$f":"IFERROR(IF(LEN(DynamischeMeilensteinDaten[[#This Row],[Meilensteine]])=0,\"\",Meilensteine!$C13),\"\")","v":""}]
[{"$nulls":6},{"$f":"IFERROR(IF(LEN(Meilensteine!D14)=0,\"\",IF(AND(Meilensteine!D14<=$B$12,Meilensteine!D14>=$B$11-$D$11),Meilensteine!E14,\"\")),\"\")","v":""},{"$f":"IFERROR(IF(LEN(DynamischeMeilensteinDaten[[#This Row],[Meilensteine]])=0,$B$12,Meilensteine!$D14),2)","v":"2024-04-23"},{"$f":"IFERROR(IF(LEN(DynamischeMeilensteinDaten[[#This Row],[Meilensteine]])=0,\"\",Meilensteine!$C14),\"\")","v":""}]
[{"$nulls":6},{"$f":"IFERROR(IF(LEN(Meilensteine!D15)=0,\"\",IF(AND(Meilensteine!D15<=$B$12,Meilensteine!D15>=$B$11-$D$11),Meilensteine!E15,\"\")),\"\")","v":""},{"$f":"IFERROR(IF(LEN(DynamischeMeilensteinDaten[[#This Row],[Meilensteine]])=0,$B$12,Meilensteine!$D15),2)","v":"2024-04-23"},{"$f":"IFERROR(IF(LEN(DynamischeMeilensteinDaten[[#This Row],[Meilensteine]])=0,\"\",Meilensteine!$C15),\"\")","v":""}]
[{"$nulls":6},{"$f":"IFERROR(IF(LEN(Meilensteine!D16)=0,\"\",IF(AND(Meilensteine!D16<=$B$12,Meilensteine!D16>=$B$11-$D$11),Meilensteine!E16,\"\")),\"\")","v":""},{"$f":"IFERROR(IF(LEN(DynamischeMeilensteinDaten[[#This Row],[Meilensteine]])=0,$B$12,Meilensteine!$D16),2)","v":"2024-04-23"},{"$f":"IFERROR(IF(LEN(DynamischeMeilensteinDaten[[#This Row],[Meilensteine]])=0,\"\",Meilensteine!$C16),\"\")","v":""}]
[{"$nulls":6},{"$f":"IFERROR(IF(LEN(Meilensteine!D17)=0,\"\",IF(AND(Meilensteine!D17<=$B$12,Meilensteine!D17>=$B$11-$D$11),Meilensteine!E17,\"\")),\"\")","v":""},{"$f":"IFERROR(IF(LEN(DynamischeMeilensteinDaten[[#This Row],[Meilensteine]])=0,$B$12,Meilensteine!$D17),2)","v":"2024-04-23"},{"$f":"IFERROR(IF(LEN(DynamischeMeilensteinDaten[[#This Row],[Meilensteine]])=0,\"\",Meilensteine!$C17),\"\")","v":""}]
[{"$nulls":6},{"$f":"IFERROR(IF(LEN(Meilensteine!D18)=0,\"\",IF(AND(Meilensteine!D18<=$B$12,Meilensteine!D18>=$B$11-$D$11),Meilensteine!E18,\"\")),\"\")","v":""},{"$f":"IFERROR(IF(LEN(DynamischeMeilensteinDaten[[#This Row],[Meilensteine]])=0,$B$12,Meilensteine!$D18),2)","v":"2024-04-23"},{"$f":"IFERROR(IF(LEN(DynamischeMeilensteinDaten[[#This Row],[Meilensteine]])=0,\"\",Meilensteine!$C18),\"\")","v":""}]
[{"$nulls":6},{"$f":"IFERROR(IF(LEN(Meilensteine!D19)=0,\"\",IF(AND(Meilensteine!D19<=$B$12,Meilensteine!D19>=$B$11-$D$11),Meilensteine!E19,\"\")),\"\")","v":""},{"$f":"IFERROR(IF(LEN(DynamischeMeilensteinDaten[[#This Row],[Meilensteine]])=0,$B$12,Meilensteine!$D19),2)","v":"2024-04-23"},{"$f":"IFERROR(IF(LEN(DynamischeMeilensteinDaten[[#This Row],[Meilensteine]])=0,\"\",Meilensteine!$C19),\"\")","v":""}]
["Ein Hinweis befindet sich in Zelle J32.\nDies ist die letzte Anweisung auf diesem Arbeitsblatt.",{"$nulls":5},{"$f":"IFERROR(IF(LEN(Meilensteine!D20)=0,\"\",IF(AND(Meilensteine!D20<=$B$12,Meilensteine!D20>=$B$11-$D$11),Meilensteine!E20,\"\")),\"\")","v":""},{"$f":"IFERROR(IF(LEN(DynamischeMeilensteinDaten[[#This Row],[Meilensteine]])=0,$B$12,Meilensteine!$D20),2)","v":"2024-04-23"},{"$f":"IFERROR(IF(LEN(DynamischeMeilensteinDaten[[#This Row],[Meilensteine]])=0,\"\",Meilensteine!$C20),\"\")","v":""},"<-- Um mehr als 15 Meilensteine darzustellen, erweitern Sie einfach diese Tabelle, und geben Sie neue Einträge in die Tabelle \"Meilensteine\" auf dem Arbeitsblatt \"Diagrammdaten\" ein.\n"]